fUSD/lending_fUSD_20260227
["ID","MTS","AMOUNT","RATE_DAILY","PERIOD"]
[406760909,1772164254065,-371.60758876,0.0004136,2]
[406760910,1772164254076,-300.0,0.0004136,2]
[406760911,1772164254085,-300.0,0.0004136,2]
[406760912,1772164254095,-300.0,0.0004136,2]
[406760913,1772164254105,-300.0,0.0004136,2]
[406760914,1772164254116,-300.0,0.0004136,2]
[406760915,1772164254128,-518.87544826,0.0004136,2]
[406760916,1772164254138,-306.40829874,0.0004136,2]
[406760917,1772164254148,-300.0,0.0004136,2]
[406760918,1772164254158,-300.0,0.0004136,2]
[406760919,1772164254167,-300.0,0.0004136,2]
[406760920,1772164254177,-300.0,0.0004136,2]
[406760921,1772164254187,-300.0,0.0004136,2]
[406760922,1772164254197,-300.0,0.0004136,2]
[406760923,1772164254207,-300.0,0.0004136,2]
[406760924,1772164254217,-300.0,0.0004136,2]
[406760925,1772164254231,-300.0,0.0004136,2]
[406760926,1772164254240,-1083.0460708,0.0004136,2]
[406760927,1772164254250,-300.0,0.0004136,2]
[406760928,1772164254259,-300.0,0.0004136,2]
[406760929,1772164254271,-300.0,0.0004136,2]
[406760930,1772164254281,-300.0,0.0004136,2]
[406760931,1772164254291,-300.0,0.0004136,2]
[406760932,1772164254301,-300.0,0.0004136,2]
[406760933,1772164254310,-306.18954585,0.0004136,2]
[406760934,1772164254322,-856.1765807,0.0004136,2]
[406760935,1772164254331,-300.0,0.0004136,2]
[406760936,1772164254342,-884.99175919,0.0004136,2]
[406760937,1772164254353,-300.0,0.0004136,2]
[406760938,1772164254365,-300.0,0.0004136,2]
[406760939,1772164254374,-300.0,0.0004136,2]
[406760940,1772164254384,-307.45431529,0.0004136,2]
[406760941,1772164254394,-300.0,0.0004136,2]
[406760942,1772164254404,-300.0,0.0004136,2]
[406760943,1772164254413,-459.19979016,0.0004136,2]
[406760944,1772164254422,-300.0,0.0004136,2]
[406760945,1772164254432,-300.0,0.0004136,2]
[406760946,1772164254442,-300.0,0.0004136,2]
[406760947,1772164254451,-371.60758876,0.0004136,2]
[406760948,1772164254461,-300.0,0.0004136,2]
[406760949,1772164254471,-300.0,0.0004136,2]
[406760950,1772164254481,-300.0,0.0004136,2]
[406760951,1772164254491,-300.0,0.0004136,2]
[406760952,1772164254500,-300.0,0.0004136,2]
[406760953,1772164254509,-518.87544826,0.0004136,2]
[406760954,1772164254519,-306.40829874,0.0004136,2]
[406760955,1772164254528,-300.0,0.0004136,2]
[406760956,1772164254537,-300.0,0.0004136,2]
[406760957,1772164254546,-300.0,0.0004136,2]
[406760958,1772164254556,-300.0,0.0004136,2]
[406760959,1772164254566,-300.0,0.0004136,2]
[406760960,1772164254575,-300.0,0.0004136,2]
[406760961,1772164254584,-300.0,0.0004136,2]
[406760962,1772164254593,-300.0,0.0004136,2]
[406760963,1772164254603,-300.00000001,0.0004136,2]
[406760964,1772164254612,-300.0,0.0004136,2]
[406760965,1772164254621,-450.0,0.0004136,2]
[406760966,1772164254631,-1083.0460708,0.0004136,2]
[406760967,1772164254640,-300.0,0.0004136,2]
[406760968,1772164254650,-300.0,0.0004136,2]
[406760969,1772164254659,-300.0,0.0004136,2]
[406760970,1772164254669,-292.43583534,0.0004136,2]
[406760971,1772164254695,-7.56416466,0.0004136,2]
[406760972,1772164254704,-300.0,0.0004136,2]
[406760973,1772164254714,-300.94158769,0.0004136,2]
[406760974,1772164254723,-856.45675791,0.0004136,2]
[406760975,1772164254733,-306.18954585,0.0004136,2]
[406760976,1772164254743,-300.0,0.0004136,2]
[406760977,1772164254753,-884.99175919,0.0004136,2]
[406760978,1772164254763,-300.0,0.0004136,2]
[406760979,1772164254773,-300.0,0.0004136,2]
[406760980,1772164254782,-300.0,0.0004136,2]
[406760981,1772164254792,-307.45431529,0.0004136,2]
[406760982,1772164254802,-300.53780832,0.0004136,2]
[406760983,1772164254812,-300.0,0.0004136,2]
[406760984,1772164254822,-162.09877078,0.0004136,2]
[406760985,1772164255130,-862.0,0.00036907,30]
[406760986,1772164255140,-1399.0,0.00037688,30]
[406760987,1772164255150,-297.10101938,0.0004136,2]
[406760988,1772164255160,-300.0,0.0004136,2]
[406760989,1772164255171,-300.0,0.0004136,2]
[406760990,1772164255181,-300.0,0.0004136,2]
[406760991,1772164255191,-371.60758876,0.0004136,2]
[406760992,1772164255201,-300.0,0.0004136,2]
[406760993,1772164255212,-300.0,0.0004136,2]
[406760994,1772164255225,-300.0,0.0004136,2]
[406760995,1772164255236,-300.0,0.0004136,2]
[406760996,1772164255247,-300.0,0.0004136,2]
[406760997,1772164255258,-306.40829874,0.0004136,2]
[406760998,1772164255270,-518.87544826,0.0004136,2]
[406760999,1772164255281,-300.0,0.0004136,2]
[406761000,1772164255464,-300.0,0.0004136,2]
[406761001,1772164255474,-300.02141216,0.0004136,2]
[406761002,1772164255483,-300.0,0.0004136,2]
[406761003,1772164255492,-300.0,0.0004136,2]
[406761004,1772164255501,-377.24113647,0.0004136,2]
[406761005,1772164255510,-300.0,0.0004136,2]
[406761006,1772164255519,-300.0,0.0004136,2]
[406761007,1772164255528,-300.0,0.0004136,2]
[406761008,1772164255537,-300.0,0.0004136,2]
[406761009,1772164255546,-1083.0606902,0.0004136,2]
[406761010,1772164255555,-300.0,0.0004136,2]
[406761011,1772164255565,-300.0,0.0004136,2]
[406761012,1772164255574,-300.0,0.0004136,2]
[406761013,1772164255583,-300.0,0.0004136,2]
[406761014,1772164255592,-300.0,0.0004136,2]
[406761015,1772164255601,-300.0,0.0004136,2]
[406761016,1772164255611,-855.89640344,0.0004136,2]
[406761017,1772164255621,-306.18954585,0.0004136,2]
[406761018,1772164255630,-300.0,0.0004136,2]
[406761019,1772164255639,-884.99175919,0.0004136,2]
[406761020,1772164255648,-300.0,0.0004136,2]
[406761021,1772164255658,-300.0,0.0004136,2]
[406761022,1772164255667,-300.0,0.0004136,2]
[406761023,1772164255677,-307.45431529,0.0004136,2]
[406761024,1772164255687,-300.0,0.0004136,2]
[406761025,1772164255695,-300.0,0.0004136,2]
[406761026,1772164255705,-459.19979016,0.0004136,2]
[406761027,1772164255714,-300.0,0.0004136,2]
[406761028,1772164255724,-300.0,0.0004136,2]
[406761029,1772164255733,-300.0,0.0004136,2]
[406761030,1772164255743,-371.60758876,0.0004136,2]
[406761031,1772164255752,-300.0,0.0004136,2]
[406761032,1772164255761,-300.0,0.0004136,2]
[406761033,1772164255770,-300.0,0.0004136,2]
[406761034,1772164255779,-300.0,0.0004136,2]
[406761035,1772164255789,-300.0,0.0004136,2]
[406761036,1772164255799,-518.87544826,0.0004136,2]
[406761037,1772164255808,-306.40829874,0.0004136,2]
[406761038,1772164255818,-300.0,0.0004136,2]
[406761039,1772164255827,-300.0,0.0004136,2]
[406761040,1772164255836,-300.0,0.0004136,2]
[406761041,1772164255845,-300.0,0.0004136,2]
[406761042,1772164255854,-300.0,0.0004136,2]
[406761043,1772164255863,-375.40453216,0.0004136,2]
[406761044,1772164255872,-300.0,0.0004136,2]
[406761045,1772164255881,-300.0,0.0004136,2]
[406761046,1772164255890,-300.0,0.0004136,2]
[406761047,1772164255899,-300.0,0.0004136,2]
[406761048,1772164255908,-1083.06069022,0.0004136,2]
[406761049,1772164255917,-300.0,0.0004136,2]
[406761050,1772164255926,-300.0,0.0004136,2]
[406761051,1772164255935,-300.0,0.0004136,2]
[406761052,1772164255944,-300.0,0.0004136,2]
[406761053,1772164255953,-300.0,0.0004136,2]
[406761054,1772164255962,-300.0,0.0004136,2]
[406761055,1772164255971,-856.17658066,0.0004136,2]
[406761056,1772164255981,-306.18954585,0.0004136,2]
[406761057,1772164255989,-300.0,0.0004136,2]
[406761058,1772164255998,-884.99175919,0.0004136,2]
[406761059,1772164256007,-300.0,0.0004136,2]
[406761060,1772164256016,-589.6322418,0.0004136,2]
[406761061,1772164256025,-300.0,0.0004136,2]
[406761062,1772164256035,-307.45431529,0.0004136,2]
[406761063,1772164256043,-300.0,0.0004136,2]
[406761064,1772164256052,-300.0,0.0004136,2]
[406761065,1772164256061,-459.19979016,0.0004136,2]
[406761066,1772164256071,-300.0,0.0004136,2]
[406761067,1772164256081,-300.0,0.0004136,2]
[406761068,1772164256090,-300.0,0.0004136,2]
[406761069,1772164256099,-371.60758876,0.0004136,2]
[406761070,1772164256108,-300.0,0.0004136,2]
[406761071,1772164256117,-300.0,0.0004136,2]
[406761072,1772164256126,-300.0,0.0004136,2]
[406761073,1772164256135,-300.0,0.0004136,2]
[406761074,1772164256144,-300.0,0.0004136,2]
[406761075,1772164256153,-518.87544826,0.0004136,2]
[406761076,1772164256162,-306.40829874,0.0004136,2]
[406761077,1772164256171,-300.0,0.0004136,2]
[406761078,1772164256180,-300.0,0.0004136,2]
[406761079,1772164256189,-300.0,0.0004136,2]
[406761080,1772164256198,-300.0,0.0004136,2]
[406761081,1772164256207,-300.0,0.0004136,2]
[406761082,1772164256217,-375.40453216,0.0004136,2]
[406761083,1772164256230,-300.0,0.0004136,2]
[406761084,1772164256238,-300.0,0.0004136,2]
[406761085,1772164256247,-300.0,0.0004136,2]
[406761086,1772164256256,-300.0,0.0004136,2]
[406761087,1772164256266,-1083.0606902,0.0004136,2]
[406761088,1772164256275,-300.0,0.0004136,2]
[406761089,1772164256284,-300.0,0.0004136,2]
[406761090,1772164256294,-300.0,0.0004136,2]
[406761091,1772164256305,-300.0,0.0004136,2]
[406761092,1772164256314,-300.0,0.0004136,2]
[406761093,1772164256324,-300.0,0.0004136,2]
[406761094,1772164256333,-856.17658071,0.0004136,2]
[406761095,1772164256343,-306.18954585,0.0004136,2]
[406761096,1772164256353,-300.0,0.0004136,2]
[406761097,1772164256362,-884.99175919,0.0004136,2]
[406761098,1772164256372,-300.0,0.0004136,2]
[406761099,1772164256382,-300.0,0.0004136,2]
[406761100,1772164256391,-307.45431529,0.0004136,2]
[406761101,1772164256401,-300.0,0.0004136,2]
[406761102,1772164256411,-300.0,0.0004136,2]
[406761103,1772164256419,-459.19979016,0.0004136,2]
[406761104,1772164256429,-300.0,0.0004136,2]
[406761105,1772164256438,-300.0,0.0004136,2]
[406761106,1772164256448,-300.0,0.0004136,2]
[406761107,1772164256457,-371.60758876,0.0004136,2]
[406761108,1772164256467,-300.0,0.0004136,2]
[406761109,1772164256477,-300.0,0.0004136,2]
[406761110,1772164256487,-300.0,0.0004136,2]
[406761111,1772164256497,-300.0,0.0004136,2]
[406761112,1772164256506,-300.0,0.0004136,2]
[406761113,1772164256515,-518.87544826,0.0004136,2]
[406761114,1772164256524,-306.40829874,0.0004136,2]
[406761115,1772164256535,-300.0,0.0004136,2]
[406761116,1772164256544,-300.00000001,0.0004136,2]
[406761117,1772164256553,-300.0,0.0004136,2]
[406761118,1772164256563,-300.0,0.0004136,2]
[406761119,1772164256573,-300.0,0.0004136,2]
[406761120,1772164256582,-375.40453216,0.0004136,2]
[406761121,1772164256592,-300.0,0.0004136,2]
[406761122,1772164256601,-300.0,0.0004136,2]
[406761123,1772164256610,-300.0,0.0004136,2]
[406761124,1772164256619,-300.0,0.0004136,2]
[406761125,1772164256629,-1083.06069022,0.0004136,2]
[406761126,1772164256639,-300.0,0.0004136,2]
[406761127,1772164256648,-300.0,0.0004136,2]
[406761128,1772164256659,-300.0,0.0004136,2]
[406761129,1772164256670,-300.0,0.0004136,2]
[406761130,1772164256679,-300.0,0.0004136,2]
[406761131,1772164256689,-300.0,0.0004136,2]
[406761132,1772164256698,-856.17658066,0.0004136,2]
[406761133,1772164256707,-306.18954585,0.0004136,2]
[406761134,1772164256716,-300.0,0.0004136,2]
[406761135,1772164256726,-884.99175919,0.0004136,2]
[406761136,1772164256735,-300.0,0.0004136,2]
[406761137,1772164256744,-300.0,0.0004136,2]
[406761138,1772164256753,-307.45431529,0.0004136,2]
[406761139,1772164256762,-300.0,0.0004136,2]
[406761140,1772164256771,-300.0,0.0004136,2]
[406761141,1772164256781,-459.19979016,0.0004136,2]
[406761142,1772164256790,-300.0,0.0004136,2]
[406761143,1772164256800,-300.0,0.0004136,2]
[406761144,1772164256809,-300.0,0.0004136,2]
[406761145,1772164256819,-371.60758876,0.0004136,2]
[406761146,1772164256829,-300.0,0.0004136,2]
[406761147,1772164256838,-300.0,0.0004136,2]
[406761148,1772164256847,-300.0,0.0004136,2]
[406761149,1772164256856,-300.0,0.0004136,2]
[406761150,1772164256865,-300.0,0.0004136,2]
[406761151,1772164256874,-518.87544826,0.0004136,2]
[406761152,1772164256883,-306.40829874,0.0004136,2]
[406761153,1772164256893,-300.0,0.0004136,2]
[406761154,1772164256902,-300.0,0.0004136,2]
[406761155,1772164256911,-300.0,0.0004136,2]
[406761156,1772164256920,-300.0,0.0004136,2]
[406761157,1772164256929,-300.0,0.0004136,2]
[406761158,1772164256938,-375.40453216,0.0004136,2]
[406761159,1772164256947,-300.0,0.0004136,2]
[406761160,1772164256956,-300.0,0.0004136,2]
[406761161,1772164256965,-300.0,0.0004136,2]
[406761162,1772164256974,-300.14578017,0.0004136,2]
[406761163,1772164256983,-300.0,0.0004136,2]
[406761164,1772164256992,-1083.0606902,0.0004136,2]
[406761165,1772164257001,-300.0,0.0004136,2]
[406761166,1772164257010,-300.0,0.0004136,2]
[406761167,1772164257020,-300.0,0.0004136,2]
[406761168,1772164257029,-300.0,0.0004136,2]
[406761169,1772164257038,-300.0,0.0004136,2]
[406761170,1772164257047,-337.30462154,0.0004136,2]
[406761171,1772164257057,-856.1765807,0.0004136,2]
[406761172,1772164257066,-306.18954585,0.0004136,2]
[406761173,1772164257075,-363.92176612,0.0004136,2]
[406761174,1772164257084,-884.99175919,0.0004136,2]
[406761175,1772164257094,-489.17884337,0.0004136,2]
[406761176,1772164257104,-504.54328979,0.0004136,2]
[406761177,1772164257113,-307.45431529,0.0004136,2]
[406761178,1772164257122,-325.19592504,0.0004136,2]
[406761179,1772164257132,-549.05829171,0.0004136,2]
[406761180,1772164257142,-459.19979016,0.0004136,2]
[406761181,1772164257151,-300.0,0.0004136,2]
[406761182,1772164257160,-300.0,0.0004136,2]
[406761183,1772164257169,-338.30499199,0.0004136,2]
[406761184,1772164257178,-371.60758876,0.0004136,2]
[406761185,1772164257187,-300.0,0.0004136,2]
[406761186,1772164257197,-300.0,0.0004136,2]
[406761187,1772164257206,-392.11694528,0.0004136,2]
[406761188,1772164257216,-300.0,0.0004136,2]
[406761189,1772164257227,-500.0,0.00041367,2]
[406761190,1772164257237,-8550.16246422,0.00041385,56]
[406761191,1772164257246,-123948.76749342,0.00041386,30]
[406761192,1772164257255,-1403.38711271,0.00041386,30]
[406761193,1772164257266,-154.0,0.000414,120]
[406761194,1772164257275,-1423.64,0.000414,14]
[406761195,1772164257284,-4009.34,0.00041452,120]
[406761196,1772164257294,-286.55488,0.00041488,30]
[406761197,1772164257303,-150.0,0.00041495,30]
[406761198,1772164257313,-150.0,0.00041495,30]
[406761199,1772164257322,-187.36675612,0.00041495,30]
[406761200,1772164257331,-156.73828069,0.00041495,30]
[406761201,1772164257340,-150.0,0.00041495,30]
[406761202,1772164257349,-150.0,0.00041495,30]
[406761203,1772164257358,-339.33750098,0.00041495,30]
[406761204,1772164257367,-150.0,0.00041495,30]
[406761205,1772164257376,-150.0,0.00041495,30]
[406761206,1772164257385,-150.0,0.00041495,30]
[406761207,1772164257395,-150.0,0.00041495,30]
[406761208,1772164257404,-150.0,0.00041495,30]
[406761209,1772164257413,-150.0,0.00041495,30]
[406761210,1772164257422,-150.0,0.00041495,30]
[406761211,1772164257431,-150.0,0.00041495,30]
[406761212,1772164257441,-150.0,0.00041495,30]
[406761213,1772164257450,-244.89372833,0.000415,120]
[406761214,1772164257459,-152.0,0.000415,120]
[406761215,1772164257468,-151.0,0.00041539,14]
[406761216,1772164257478,-187.36675612,0.00041542,30]
[406761217,1772164257487,-156.73828069,0.00041542,30]
[406761218,1772164257497,-339.33750098,0.00041542,30]
[406761219,1772164257506,-150.0,0.00041549,30]
[406761220,1772164257515,-150.0,0.00041564,30]
[406761221,1772164257525,-150.0,0.00041565,30]
[406761222,1772164257534,-150.0,0.0004158,120]
[406761223,1772164257544,-187.36675612,0.00041589,30]
[406761224,1772164257553,-156.73828069,0.00041589,30]
[406761225,1772164257562,-339.33750098,0.00041589,30]
[406761226,1772164257571,-150.0,0.00041603,30]
[406761227,1772164257580,-1545.46143002,0.00041603,30]
[406761228,1772164257589,-150.0,0.00041611,30]
[406761229,1772164257599,-150.0,0.00041618,2]
[406761230,1772164257608,-150.0,0.00041631,30]
[406761231,1772164257617,-150.0,0.00041633,30]
[406761232,1772164257625,-187.36675612,0.00041635,30]
[406761233,1772164257635,-156.73828069,0.00041635,30]
[406761234,1772164257644,-339.33750098,0.00041635,30]
[406761235,1772164257653,-150.0,0.00041635,30]
[406761236,1772164257663,-843.0,0.00041644,120]
[406761237,1772164257672,-250.0,0.00041644,10]
[406761238,1772164257681,-150.0,0.00041654,30]
[406761239,1772164257691,-150.0,0.00041656,30]
[406761240,1772164257700,-187.36675612,0.00041682,30]
[406761241,1772164257709,-156.73828069,0.00041682,30]
[406761242,1772164257719,-339.33750098,0.00041682,30]
[406761243,1772164257728,-286.55488,0.00041688,30]
[406761244,1772164257737,-150.0,0.00041696,30]
[406761245,1772164257746,-150.0,0.00041696,30]
[406761246,1772164257756,-150.0,0.00041702,30]
[406761247,1772164257765,-150.0,0.00041705,30]
[406761248,1772164257775,-150.0,0.0004171,30]
[406761249,1772164257785,-150.0,0.00041726,30]
[406761250,1772164257794,-6071.47635036,0.00041726,30]
[406761251,1772164257803,-187.36675612,0.00041728,30]
[406761252,1772164257813,-156.73828069,0.00041728,30]
[406761253,1772164257822,-339.33750098,0.00041728,30]
[406761254,1772164257831,-212.371318,0.00041756,120]
[406761255,1772164257841,-150.0,0.00041763,30]
[406761256,1772164257849,-150.0,0.00041767,30]
[406761257,1772164257859,-150.0,0.00041771,30]
[406761258,1772164257867,-187.36675612,0.00041775,30]
[406761259,1772164257876,-156.73828069,0.00041775,30]
[406761260,1772164257885,-339.33750098,0.00041775,30]
[406761261,1772164257894,-150.0,0.00041775,30]
[406761262,1772164257903,-1040.2,0.00041776,30]
[406761263,1772164257912,-686.30822968,0.000418,120]
[406761264,1772164257921,-303.5762,0.000418,60]
[406761265,1772164257931,-150.0,0.00041813,30]
[406761266,1772164257940,-150.0,0.00041817,30]
[406761267,1772164257949,-187.36675612,0.00041821,30]
[406761268,1772164257958,-156.73828069,0.00041821,30]
[406761269,1772164257967,-339.33750098,0.00041821,30]
[406761270,1772164257976,-150.0,0.00041833,2]
[406761271,1772164257985,-700.0,0.00041839,60]
[406761272,1772164257995,-150.0,0.00041839,30]
[406761273,1772164258004,-150.0,0.00041841,30]
[406761274,1772164258013,-150.0,0.00041845,30]
[406761275,1772164258022,-187.36675612,0.00041868,30]
[406761276,1772164258031,-156.73828069,0.00041868,30]
[406761277,1772164258040,-339.33750098,0.00041868,30]
[406761278,1772164258049,-150.0,0.00041871,30]
[406761279,1772164258058,-286.55488,0.00041888,30]
[406761280,1772164258067,-150.0,0.00041896,30]
[406761281,1772164258077,-150.0,0.00041896,30]
[406761282,1772164258088,-767.29,0.00041899,120]
[406761283,1772164258097,-767.29,0.00041899,120]
[406761284,1772164258106,-767.29,0.00041899,120]
[406761285,1772164258116,-767.29,0.00041899,120]
[406761286,1772164258125,-767.50489713,0.00041899,120]
[406761287,1772164258134,-154.21407596,0.000419,90]
[406761288,1772164258142,-118859.22706557,0.000419,14]
[406761289,1772164258158,-4341.46095644,0.000419,14]
[406761290,1772164258172,-2486.13672743,0.000419,14]
[406761291,1772164258183,-4592.69195026,0.000419,14]
[406761292,1772164258194,-3275.848593,0.000419,14]
[406761293,1772164258205,-1163.69555954,0.000419,14]
[406761294,1772164258231,-899.9482543,0.000419,14]
[406761295,1772164258242,-658.88696035,0.000419,14]
[406761296,1772164258253,-17493.75258268,0.000419,14]
[406761297,1772164258266,-616.0,0.000419,14]
[406761298,1772164267082,195.0,0.00011643,120]
[406761303,1772164320679,1961.85191657,0.0001812,120]
[406761305,1772164773023,4254.6,0.0001789,120]
[406761312,1772164969788,614.02,6.14e-05,2]
[406761313,1772164969976,614.02,6.404e-05,2]
[406761320,1772165294571,161.86,5.888e-05,2]
[406761330,1772165399491,150.0,0.00011233,120]
[406761338,1772165431478,-614.02,6.669e-05,2]
[406761340,1772165431489,-300.31663406,6.801e-05,2]
[406761342,1772165431499,-614.02,6.933e-05,2]
[406761344,1772165431508,-614.02,7.197e-05,2]
[406761346,1772165431517,-1500.0,7.323e-05,2]
[406761347,1772165431527,-772.95,7.325e-05,2]
[406761348,1772165431537,-250.0,7.335e-05,2]
[406761349,1772165431546,-500.0,7.389e-05,2]
[406761350,1772165431557,-614.02,7.462e-05,2]
[406761351,1772165431572,-614.02,7.726e-05,2]
[406761352,1772165431583,-493.0,7.819e-05,2]
[406761353,1772165431594,-1200.0,7.927e-05,2]
[406761354,1772165431603,-1626.0,7.928e-05,2]
[406761355,1772165431613,-267.0,7.944e-05,2]
[406761356,1772165431623,-614.02,7.991e-05,2]
[406761357,1772165431633,-300.0,7.994e-05,2]
[406761358,1772165431642,-150.0,7.995e-05,2]
[406761359,1772165431652,-231.0,7.996e-05,2]
[406761360,1772165431665,-150.99,7.996e-05,2]
[406761361,1772165431675,-9999.99,7.996e-05,2]
[406761362,1772165431684,-150.99,7.996e-05,2]
[406761363,1772165431694,-9999.99,7.996e-05,2]
[406761364,1772165431703,-299.99,7.996e-05,2]
[406761365,1772165431712,-1152.44,7.996e-05,2]
[406761366,1772165431722,-12338.11537087,8e-05,2]
[406761367,1772165431731,-999.99,8e-05,2]
[406761368,1772165431740,-509.0,8.012e-05,2]
[406761369,1772165431750,-1230.0,8.104e-05,2]
[406761370,1772165431759,-1641.0,8.12e-05,2]
[406761371,1772165431769,-464.0,8.137e-05,2]
[406761372,1772165431779,-2299.990882,8.178e-05,2]
[406761373,1772165431788,-241.046665,8.219e-05,2]
[406761374,1772165431797,-301.04,8.219e-05,2]
[406761375,1772165431806,-47910.09,8.237e-05,2]
[406761376,1772165431816,-614.02,8.255e-05,2]
[406761377,1772165431825,-308.35774313,8.459e-05,2]
[406761378,1772165431835,-614.02,8.519e-05,2]
[406761379,1772165431845,-301.04,8.676e-05,2]
[406761380,1772165431854,-1680.0,8.72e-05,2]
[406761381,1772165431863,-614.02,8.784e-05,2]
[406761382,1772165431873,-255.0,8.795e-05,2]
[406761383,1772165431882,-2500.0,8.8e-05,2]
[406761384,1772165431891,-151.0,8.897e-05,2]
[406761385,1772165431900,-151.0,8.897e-05,2]
[406761386,1772165431910,-150.37851445,8.899e-05,2]
[406761387,1772165431919,-500.0,8.899e-05,2]
[406761388,1772165431928,-500.0,8.899e-05,2]
[406761389,1772165431938,-500.0,8.899e-05,2]
[406761390,1772165431947,-500.0,8.899e-05,2]
[406761391,1772165431957,-500.0,8.899e-05,2]
[406761392,1772165431967,-500.0,8.899e-05,2]
[406761393,1772165431976,-500.0,8.899e-05,2]
[406761394,1772165431986,-500.0,8.899e-05,2]
[406761395,1772165431995,-500.0,8.899e-05,2]
[406761396,1772165432005,-500.0,8.899e-05,2]
[406761397,1772165432014,-500.0,8.899e-05,2]
[406761398,1772165432023,-500.0,8.899e-05,2]
[406761399,1772165432032,-500.0,8.899e-05,2]
[406761400,1772165432042,-500.0,8.899e-05,2]
[406761401,1772165432051,-500.0,8.899e-05,2]
[406761402,1772165432061,-500.0,8.899e-05,2]
[406761403,1772165432071,-500.0,8.899e-05,2]
[406761404,1772165432080,-500.0,8.899e-05,2]
[406761405,1772165432090,-500.0,8.899e-05,2]
[406761406,1772165432099,-500.0,8.899e-05,2]
[406761407,1772165432108,-500.0,8.899e-05,2]
[406761408,1772165432117,-500.0,8.899e-05,2]
[406761409,1772165432126,-500.0,8.899e-05,2]
[406761410,1772165432135,-500.0,8.899e-05,2]
[406761411,1772165432144,-500.0,8.899e-05,2]
[406761412,1772165432391,-500.0,8.899e-05,2]
[406761413,1772165432421,-500.0,8.899e-05,2]
[406761414,1772165432431,-500.0,8.899e-05,2]
[406761415,1772165432441,-500.0,8.899e-05,2]
[406761416,1772165432451,-500.0,8.899e-05,2]
[406761417,1772165432461,-500.0,8.899e-05,2]
[406761418,1772165432470,-500.0,8.899e-05,2]
[406761419,1772165432481,-500.0,8.899e-05,2]
[406761420,1772165432491,-500.0,8.899e-05,2]
[406761421,1772165432501,-500.0,8.899e-05,2]
[406761422,1772165432511,-500.0,8.899e-05,2]
[406761423,1772165432521,-465.8468003,8.899e-05,2]
[406761424,1772165432530,-500.0,8.899e-05,2]
[406761425,1772165432540,-500.0,8.899e-05,2]
[406761426,1772165432551,-500.0,8.899e-05,2]
[406761427,1772165432562,-500.0,8.899e-05,2]
[406761428,1772165432571,-500.0,8.899e-05,2]
[406761429,1772165432580,-500.0,8.899e-05,2]
[406761430,1772165432593,-500.0,8.899e-05,2]
[406761431,1772165432602,-500.0,8.899e-05,2]
[406761432,1772165432611,-500.0,8.899e-05,2]
[406761433,1772165432620,-500.0,8.899e-05,2]
[406761434,1772165432631,-500.0,8.899e-05,2]
[406761435,1772165432640,-500.0,8.899e-05,2]
[406761436,1772165432650,-500.0,8.899e-05,2]
[406761437,1772165432659,-500.0,8.899e-05,2]
[406761438,1772165432668,-500.0,8.899e-05,2]
[406761439,1772165432677,-500.0,8.899e-05,2]
[406761440,1772165432687,-500.0,8.899e-05,2]
[406761441,1772165432696,-500.0,8.899e-05,2]
[406761442,1772165432705,-500.0,8.899e-05,2]
[406761443,1772165432715,-500.0,8.899e-05,2]
[406761444,1772165432724,-500.0,8.899e-05,2]
[406761445,1772165432733,-500.0,8.899e-05,2]